[Event "*** Titled Tuesday Blitz"]
[Site "Chess.com"]
[Date "2020.12.01"]
[Round "9"]
[White "German_Bazeev"]
[Black "banane_verte"]
[Result "1-0"]
[WhiteElo "2719"]
[BlackElo "2502"]
[TimeControl "180+1"]
[EndTime "11:44:29 PST"]
[Termination "German_Bazeev won by checkmate"]

1. d4 {[%clk 0:02:15.3]} 1... Nf6 {[%clk 0:02:59.3]} 2. Nf3 {[%clk 0:02:15]}
2... d5 {[%clk 0:02:58.8]} 3. c4 {[%clk 0:02:14.6]} 3... e6 {[%clk 0:02:54.7]}
4. g3 {[%clk 0:02:14.5]} 4... Be7 {[%clk 0:02:54.1]} 5. Bg2 {[%clk 0:02:14.1]}
5... O-O {[%clk 0:02:54.7]} 6. O-O {[%clk 0:02:14.8]} 6... dxc4 {[%clk
0:02:54.8]} 7. Qc2 {[%clk 0:02:15.4]} 7... a6 {[%clk 0:02:54.5]} 8. Rd1 {[%clk
0:02:15.8]} 8... Nbd7 {[%clk 0:02:17.5]} 9. Ne5 {[%clk 0:02:13.6]} 9... c5
{[%clk 0:02:00.3]} 10. dxc5 {[%clk 0:01:45.3]} 10... Qc7 {[%clk 0:01:58.4]} 11.
Nxc4 {[%clk 0:01:39.8]} 11... Bxc5 {[%clk 0:01:45]} 12. Bf4 {[%clk 0:01:32.4]}
12... e5 {[%clk 0:01:44.4]} 13. Be3 {[%clk 0:01:31.3]} 13... Bxe3 {[%clk
0:01:39.7]} 14. Nxe3 {[%clk 0:01:32.2]} 14... Qxc2 {[%clk 0:01:39.6]} 15. Nxc2
{[%clk 0:01:33.1]} 15... Rb8 {[%clk 0:01:28.8]} 16. Nc3 {[%clk 0:01:31.4]} 16...
b5 {[%clk 0:01:28.5]} 17. Nb4 {[%clk 0:01:32]} 17... Nc5 {[%clk 0:01:06.5]} 18.
Rac1 {[%clk 0:01:26.5]} 18... Bb7 {[%clk 0:01:02.1]} 19. Bxb7 {[%clk 0:01:24.5]}
19... Rxb7 {[%clk 0:01:03]} 20. Ncd5 {[%clk 0:01:24.2]} 20... Nxd5 {[%clk
0:00:55.3]} 21. Rxd5 {[%clk 0:01:21.9]} 21... Na4 {[%clk 0:00:55.2]} 22. b3
{[%clk 0:01:20.7]} 22... Nb6 {[%clk 0:00:53.7]} 23. Rxe5 {[%clk 0:01:20.9]}
23... f6 {[%clk 0:00:32.8]} 24. Rec5 {[%clk 0:01:16.4]} 24... Re8 {[%clk
0:00:32.3]} 25. Kf1 {[%clk 0:01:12.3]} 25... a5 {[%clk 0:00:27.3]} 26. Nd3
{[%clk 0:01:07.6]} 26... Nd7 {[%clk 0:00:25.6]} 27. Rc7 {[%clk 0:01:06.7]} 27...
Reb8 {[%clk 0:00:25.8]} 28. Rxb7 {[%clk 0:00:55.9]} 28... Rxb7 {[%clk
0:00:26.7]} 29. Rc8+ {[%clk 0:00:56.1]} 29... Kf7 {[%clk 0:00:26.6]} 30. Ra8
{[%clk 0:00:56.6]} 30... a4 {[%clk 0:00:19.9]} 31. bxa4 {[%clk 0:00:56.6]} 31...
bxa4 {[%clk 0:00:20.8]} 32. Rxa4 {[%clk 0:00:56.7]} 32... Rb1+ {[%clk
0:00:20.7]} 33. Kg2 {[%clk 0:00:56.5]} 33... Ra1 {[%clk 0:00:19.3]} 34. Ra7
{[%clk 0:00:55.7]} 34... Ke6 {[%clk 0:00:16.7]} 35. Nf4+ {[%clk 0:00:55.5]}
35... Kd6 {[%clk 0:00:17.4]} 36. a4 {[%clk 0:00:52.4]} 36... g5 {[%clk
0:00:11.7]} 37. Nh5 {[%clk 0:00:48.1]} 37... Ra2 {[%clk 0:00:11.4]} 38. e3
{[%clk 0:00:48]} 38... Nc5 {[%clk 0:00:07.2]} 39. Nxf6 {[%clk 0:00:43.2]} 39...
h6 {[%clk 0:00:03.5]} 40. a5 {[%clk 0:00:41.2]} 40... Ke6 {[%clk 0:00:03]} 41.
Ng4 {[%clk 0:00:33.8]} 41... Ne4 {[%clk 0:00:02.8]} 42. Rh7 {[%clk 0:00:30.7]}
42... Rxa5 {[%clk 0:00:01.6]} 43. Rxh6+ {[%clk 0:00:31]} 43... Kf7 {[%clk
0:00:01.6]} 44. h3 {[%clk 0:00:30.3]} 44... Kg7 {[%clk 0:00:01.6]} 45. Re6
{[%clk 0:00:30]} 45... Ra3 {[%clk 0:00:01.7]} 46. Re7+ {[%clk 0:00:26.3]} 46...
Kf8 {[%clk 0:00:01.8]} 47. Rxe4 {[%clk 0:00:25.9]} 47... Ra2 {[%clk 0:00:02.1]}
48. Re5 {[%clk 0:00:25.8]} 48... Kg7 {[%clk 0:00:02.4]} 49. Rxg5+ {[%clk
0:00:25.8]} 49... Kh7 {[%clk 0:00:03.3]} 50. Rf5 {[%clk 0:00:25.9]} 50... Kg6
{[%clk 0:00:03.6]} 51. Rf3 {[%clk 0:00:26.8]} 51... Kg5 {[%clk 0:00:03.7]} 52.
Nh2 {[%clk 0:00:25.8]} 52... Kg6 {[%clk 0:00:03.8]} 53. h4 {[%clk 0:00:26.7]}
53... Kh5 {[%clk 0:00:04]} 54. g4+ {[%clk 0:00:26.1]} 54... Kxh4 {[%clk
0:00:02.5]} 55. Rf5 {[%clk 0:00:24.3]} 55... Rxf2+ {[%clk 0:00:02.5]} 56. Kxf2
{[%clk 0:00:23.8]} 56... Kh3 {[%clk 0:00:01.7]} 57. Rh5# {[%clk 0:00:24.4]} 1-0

[Event "*** Titled Tuesday Blitz"]
[Site "Chess.com"]
[Date "2020.12.01"]
[Round "9"]
[White "maximnovik"]
[Black "Forantes"]
[Result "1-0"]
[WhiteElo "2546"]
[BlackElo "2388"]
[TimeControl "180+1"]
[EndTime "11:44:30 PST"]
[Termination "maximnovik won by checkmate"]

1. d4 {[%clk 0:03:00.9]} 1... Nf6 {[%clk 0:02:58.2]} 2. Bg5 {[%clk 0:03:00]}
2... d5 {[%clk 0:02:57.9]} 3. Bxf6 {[%clk 0:02:59.6]} 3... exf6 {[%clk
0:02:58.2]} 4. e3 {[%clk 0:02:59.7]} 4... Bd6 {[%clk 0:02:57.6]} 5. Bd3 {[%clk
0:02:55.4]} 5... f5 {[%clk 0:02:56.4]} 6. Qf3 {[%clk 0:02:44.2]} 6... f4 {[%clk
0:02:48.6]} 7. exf4 {[%clk 0:02:41.1]} 7... O-O {[%clk 0:02:29.7]} 8. Nd2 {[%clk
0:02:41.4]} 8... c6 {[%clk 0:02:26.4]} 9. Ne2 {[%clk 0:02:40.7]} 9... Nd7 {[%clk
0:02:24.6]} 10. O-O {[%clk 0:02:36.4]} 10... Nf6 {[%clk 0:02:24.8]} 11. h3
{[%clk 0:02:28.5]} 11... Qc7 {[%clk 0:02:23.1]} 12. Rfe1 {[%clk 0:02:23.2]}
12... Re8 {[%clk 0:02:22.9]} 13. Nf1 {[%clk 0:02:21.7]} 13... Bd7 {[%clk
0:02:21.2]} 14. Ne3 {[%clk 0:02:19.4]} 14... Ne4 {[%clk 0:02:18.8]} 15. c3
{[%clk 0:02:11.2]} 15... Re7 {[%clk 0:02:09.7]} 16. Ng3 {[%clk 0:02:03.8]} 16...
Rae8 {[%clk 0:01:44.1]} 17. Nef5 {[%clk 0:01:57.3]} 17... Bxf5 {[%clk
0:01:17.6]} 18. Nxf5 {[%clk 0:01:56.8]} 18... Re6 {[%clk 0:01:17.7]} 19. g3
{[%clk 0:01:47.5]} 19... Nd2 {[%clk 0:01:10]} 20. Qg4 {[%clk 0:01:28.5]} 20...
Rxe1+ {[%clk 0:01:07.9]} 21. Rxe1 {[%clk 0:01:27.7]} 21... Rxe1+ {[%clk
0:01:06.9]} 22. Kg2 {[%clk 0:01:27.9]} 22... g6 {[%clk 0:00:50.2]} 23. Ne3
{[%clk 0:01:20]} 23... Ne4 {[%clk 0:00:40.2]} 24. f5 {[%clk 0:01:17.3]} 24...
Rxe3 {[%clk 0:00:21.4]} 25. fxe3 {[%clk 0:01:16.4]} 25... Qe7 {[%clk 0:00:19.5]}
26. fxg6 {[%clk 0:01:10.5]} 26... hxg6 {[%clk 0:00:19.3]} 27. h4 {[%clk
0:01:02.6]} 27... Qf6 {[%clk 0:00:19.5]} 28. Bxe4 {[%clk 0:00:58.8]} 28... dxe4
{[%clk 0:00:20.4]} 29. Qxe4 {[%clk 0:00:59.2]} 29... Qe6 {[%clk 0:00:20.6]} 30.
Qxe6 {[%clk 0:00:53.1]} 30... fxe6 {[%clk 0:00:21.5]} 31. Kf3 {[%clk 0:00:46.3]}
31... Kf7 {[%clk 0:00:21.6]} 32. g4 {[%clk 0:00:46]} 32... Kf6 {[%clk
0:00:20.3]} 33. g5+ {[%clk 0:00:45.9]} 33... Kf7 {[%clk 0:00:19.5]} 34. Kg4
{[%clk 0:00:43.5]} 34... Bh2 {[%clk 0:00:17.8]} 35. Kf3 {[%clk 0:00:36.2]} 35...
Bg1 {[%clk 0:00:14.1]} 36. e4 {[%clk 0:00:32]} 36... e5 {[%clk 0:00:12.5]} 37.
d5 {[%clk 0:00:26.6]} 37... cxd5 {[%clk 0:00:12.6]} 38. exd5 {[%clk 0:00:26.2]}
38... Ke7 {[%clk 0:00:12.4]} 39. Ke4 {[%clk 0:00:25.1]} 39... Bh2 {[%clk
0:00:12.6]} 40. h5 {[%clk 0:00:21.2]} 40... gxh5 {[%clk 0:00:12.6]} 41. g6
{[%clk 0:00:21.4]} 41... h4 {[%clk 0:00:11.9]} 42. d6+ {[%clk 0:00:18]} 42...
Kf6 {[%clk 0:00:10.4]} 43. g7 {[%clk 0:00:17.1]} 43... Kxg7 {[%clk 0:00:10.2]}
44. d7 {[%clk 0:00:17.3]} 44... h3 {[%clk 0:00:10.5]} 45. d8=Q {[%clk
0:00:16.7]} 45... Bf4 {[%clk 0:00:11.4]} 46. Qe7+ {[%clk 0:00:16.4]} 46... Kg6
{[%clk 0:00:11.7]} 47. Qe6+ {[%clk 0:00:16.8]} 47... Kg5 {[%clk 0:00:11.9]} 48.
Qxh3 {[%clk 0:00:17.3]} 48... Kf6 {[%clk 0:00:12.1]} 49. Qf5+ {[%clk 0:00:16.6]}
49... Ke7 {[%clk 0:00:13]} 50. Kd5 {[%clk 0:00:16.8]} 50... Kd8 {[%clk
0:00:13.2]} 51. Qf7 {[%clk 0:00:16.7]} 51... Kc8 {[%clk 0:00:13.3]} 52. Ke6
{[%clk 0:00:16.1]} 52... e4 {[%clk 0:00:13.5]} 53. Qd7+ {[%clk 0:00:16.5]} 53...
Kb8 {[%clk 0:00:13.6]} 54. Qd8# {[%clk 0:00:16.7]} 1-0

[Event "*** Titled Tuesday Blitz"]
[Site "Chess.com"]
[Date "2020.12.01"]
[Round "9"]
[White "Azerichess"]
[Black "AlexeiShirov"]
[Result "1-0"]
[WhiteElo "2968"]
[BlackElo "2848"]
[TimeControl "180+1"]
[EndTime "11:44:31 PST"]
[Termination "Azerichess won by resignation"]

1. d4 {[%clk 0:03:00.9]} 1... d5 {[%clk 0:02:59.9]} 2. c4 {[%clk 0:02:59.9]}
2... c6 {[%clk 0:02:59.9]} 3. Nf3 {[%clk 0:03:00.5]} 3... Nf6 {[%clk 0:02:59.9]}
4. Qb3 {[%clk 0:03:00.9]} 4... dxc4 {[%clk 0:02:43.9]} 5. Qxc4 {[%clk
0:03:01.8]} 5... Bg4 {[%clk 0:02:43.7]} 6. Nbd2 {[%clk 0:02:54.2]} 6... Nbd7
{[%clk 0:02:41.7]} 7. g3 {[%clk 0:02:54.6]} 7... e6 {[%clk 0:02:34.6]} 8. Bg2
{[%clk 0:02:54.7]} 8... Be7 {[%clk 0:02:32.7]} 9. O-O {[%clk 0:02:55.2]} 9...
O-O {[%clk 0:02:32.5]} 10. Qb3 {[%clk 0:02:53.7]} 10... Qb6 {[%clk 0:02:31.4]}
11. Nc4 {[%clk 0:02:53.9]} 11... Qxb3 {[%clk 0:02:30.2]} 12. axb3 {[%clk
0:02:53.7]} 12... Bxf3 {[%clk 0:02:29.5]} 13. Bxf3 {[%clk 0:02:53.5]} 13... Nd5
{[%clk 0:02:17.2]} 14. Na5 {[%clk 0:02:50.4]} 14... Rab8 {[%clk 0:02:16.2]} 15.
Bxd5 {[%clk 0:02:50.2]} 15... cxd5 {[%clk 0:02:09.4]} 16. Bf4 {[%clk 0:02:50.4]}
16... Ra8 {[%clk 0:01:58.3]} 17. Nxb7 {[%clk 0:02:49.2]} 17... g5 {[%clk
0:01:55.1]} 18. Bd2 {[%clk 0:02:39]} 18... Rfb8 {[%clk 0:01:47.2]} 19. Na5
{[%clk 0:02:36.9]} 19... Bf6 {[%clk 0:01:38.7]} 20. e3 {[%clk 0:02:21.5]} 20...
e5 {[%clk 0:01:38.5]} 21. dxe5 {[%clk 0:02:10.4]} 21... Nxe5 {[%clk 0:01:37.7]}
22. Bc3 {[%clk 0:02:09.7]} 22... Nf3+ {[%clk 0:01:27.8]} 23. Kg2 {[%clk
0:02:09.3]} 23... Bxc3 {[%clk 0:01:26.8]} 24. bxc3 {[%clk 0:02:10.2]} 24... g4
{[%clk 0:01:25.9]} 25. Rfd1 {[%clk 0:02:08.5]} 25... Rb5 {[%clk 0:01:22.2]} 26.
b4 {[%clk 0:01:57]} 26... Rc8 {[%clk 0:01:21]} 27. Ra3 {[%clk 0:01:51]} 27... h5
{[%clk 0:01:18.9]} 28. h3 {[%clk 0:01:36.4]} 28... Kg7 {[%clk 0:01:18.5]} 29.
hxg4 {[%clk 0:01:08.4]} 29... hxg4 {[%clk 0:01:17.5]} 30. Kf1 {[%clk 0:01:09.1]}
30... Ng5 {[%clk 0:01:08.1]} 31. Ke2 {[%clk 0:01:04.5]} 31... Ne4 {[%clk
0:01:08.1]} 32. Rd3 {[%clk 0:01:04.9]} 32... Rh8 {[%clk 0:01:07.9]} 33. Nc6
{[%clk 0:00:28.6]} 33... Rh2 {[%clk 0:01:06.8]} 34. Rd1 {[%clk 0:00:26.7]} 34...
Nxf2 {[%clk 0:01:03.7]} 35. Rf1 {[%clk 0:00:26.5]} 35... Ne4+ {[%clk 0:01:03.3]}
36. Ke1 {[%clk 0:00:26.3]} 36... Nxg3 {[%clk 0:01:02]} 37. Rg1 {[%clk
0:00:25.8]} 37... Re2+ {[%clk 0:00:41.3]} 38. Kd1 {[%clk 0:00:25.8]} 38... Rxe3
{[%clk 0:00:40.3]} 39. Nd4 {[%clk 0:00:26]} 39... Rxb4 {[%clk 0:00:39.8]} 40.
Rxg3 {[%clk 0:00:24.1]} 40... Rxg3 {[%clk 0:00:35.1]} 41. Nf5+ {[%clk
0:00:24.2]} 41... Kg6 {[%clk 0:00:32.8]} 42. Nxg3 {[%clk 0:00:25.1]} 42... Rc4
{[%clk 0:00:30.6]} 43. Ne2 {[%clk 0:00:25.2]} 43... f5 {[%clk 0:00:27.8]} 44.
Ra6+ {[%clk 0:00:21.1]} 44... Kg5 {[%clk 0:00:26.9]} 45. Rxa7 {[%clk 0:00:21.7]}
45... f4 {[%clk 0:00:23.3]} 46. Rg7+ {[%clk 0:00:22]} 46... Kf6 {[%clk
0:00:19.8]} 47. Rxg4 {[%clk 0:00:21.6]} 47... f3 {[%clk 0:00:19.8]} 48. Rf4+
{[%clk 0:00:21.9]} 48... Rxf4 {[%clk 0:00:18.6]} 49. Nxf4 {[%clk 0:00:21.6]}
49... Ke5 {[%clk 0:00:16.5]} 50. Nd3+ {[%clk 0:00:21.6]} 50... Kf5 {[%clk
0:00:16.4]} 51. Kd2 {[%clk 0:00:20.4]} 51... Ke4 {[%clk 0:00:16]} 52. Nf2+
{[%clk 0:00:20.5]} 52... Kf4 {[%clk 0:00:15.8]} 53. Kd3 {[%clk 0:00:21]} 53...
Kg3 {[%clk 0:00:15.8]} 54. Ke3 {[%clk 0:00:21.6]} 54... Kg2 {[%clk 0:00:15.5]}
55. Nd3 {[%clk 0:00:14.7]} 55... Kg3 {[%clk 0:00:15.5]} 56. Kd4 {[%clk
0:00:15.2]} 56... f2 {[%clk 0:00:14.3]} 57. Nxf2 {[%clk 0:00:15.3]} 1-0

[Event "*** Titled Tuesday Blitz"]
[Site "Chess.com"]
[Date "2020.12.01"]
[Round "9"]
[White "Man-Chuk"]
[Black "StephenDedalus83"]
[Result "0-1"]
[WhiteElo "2860"]
[BlackElo "2727"]
[TimeControl "180+1"]
[EndTime "11:44:36 PST"]
[Termination "StephenDedalus83 won by resignation"]

1. c4 {[%clk 0:03:00.9]} 1... g6 {[%clk 0:02:58.8]} 2. Nc3 {[%clk 0:02:59.1]}
2... Bg7 {[%clk 0:02:58.7]} 3. d4 {[%clk 0:02:58.9]} 3... d6 {[%clk 0:02:57]} 4.
e4 {[%clk 0:02:58.7]} 4... Nf6 {[%clk 0:02:55.4]} 5. Nf3 {[%clk 0:02:58.3]} 5...
O-O {[%clk 0:02:55.9]} 6. Be2 {[%clk 0:02:58.6]} 6... e5 {[%clk 0:02:56.2]} 7.
O-O {[%clk 0:02:56.8]} 7... Nc6 {[%clk 0:02:56.7]} 8. Be3 {[%clk 0:02:56.6]}
8... Ng4 {[%clk 0:02:55.3]} 9. Bg5 {[%clk 0:02:56.9]} 9... f6 {[%clk 0:02:55.4]}
10. Bh4 {[%clk 0:02:57.3]} 10... g5 {[%clk 0:02:55.7]} 11. Bg3 {[%clk
0:02:57.7]} 11... Nh6 {[%clk 0:02:56.2]} 12. dxe5 {[%clk 0:02:57.1]} 12... dxe5
{[%clk 0:02:55.8]} 13. Qa4 {[%clk 0:02:42.3]} 13... g4 {[%clk 0:02:52.5]} 14.
Rfd1 {[%clk 0:02:34.7]} 14... Bd7 {[%clk 0:02:42.8]} 15. Ne1 {[%clk 0:02:12.9]}
15... Nd4 {[%clk 0:02:41.8]} 16. Qa3 {[%clk 0:02:13.1]} 16... Rf7 {[%clk
0:02:27.3]} 17. c5 {[%clk 0:02:11.7]} 17... Be6 {[%clk 0:02:22]} 18. Bf1 {[%clk
0:02:03.9]} 18... Bf8 {[%clk 0:02:17.9]} 19. Nb5 {[%clk 0:02:03.6]} 19... Rd7
{[%clk 0:02:00.6]} 20. Nxd4 {[%clk 0:02:01]} 20... Rxd4 {[%clk 0:02:00]} 21. Be2
{[%clk 0:01:52.4]} 21... Nf7 {[%clk 0:01:40.1]} 22. Qc3 {[%clk 0:01:38.7]} 22...
Ng5 {[%clk 0:01:39.5]} 23. Rxd4 {[%clk 0:01:37.5]} 23... Qxd4 {[%clk 0:01:37.4]}
24. Qxd4 {[%clk 0:01:32.5]} 24... exd4 {[%clk 0:01:37.9]} 25. Rc1 {[%clk
0:01:23.8]} 25... Nxe4 {[%clk 0:01:31.2]} 26. c6 {[%clk 0:01:04.7]} 26... Nxg3
{[%clk 0:01:30.3]} 27. hxg3 {[%clk 0:01:03.4]} 27... b6 {[%clk 0:01:27.4]} 28.
Bc4 {[%clk 0:01:02.8]} 28... Kf7 {[%clk 0:01:24.9]} 29. Nd3 {[%clk 0:01:02.7]}
29... Bxc4 {[%clk 0:01:18.9]} 30. Rxc4 {[%clk 0:01:02.4]} 30... Rd8 {[%clk
0:01:19.4]} 31. b4 {[%clk 0:00:59.9]} 31... a6 {[%clk 0:01:18.2]} 32. Rc2 {[%clk
0:00:46.1]} 32... Ke6 {[%clk 0:01:16.2]} 33. Kf1 {[%clk 0:00:44.6]} 33... Bd6
{[%clk 0:01:12.6]} 34. Ke2 {[%clk 0:00:31.2]} 34... Kd5 {[%clk 0:01:12.3]} 35.
Kd2 {[%clk 0:00:25.1]} 35... h5 {[%clk 0:01:07.2]} 36. Rc1 {[%clk 0:00:25.1]}
36... Rh8 {[%clk 0:01:06.7]} 37. a4 {[%clk 0:00:23.6]} 37... h4 {[%clk
0:01:05.5]} 38. gxh4 {[%clk 0:00:22.1]} 38... Rxh4 {[%clk 0:01:04.5]} 39. b5
{[%clk 0:00:22.3]} 39... axb5 {[%clk 0:01:02.1]} 40. axb5 {[%clk 0:00:23.2]}
40... Rh8 {[%clk 0:00:59.7]} 41. Ra1 {[%clk 0:00:09.5]} 41... f5 {[%clk
0:00:49.5]} 42. g3 {[%clk 0:00:09]} 42... Rh2 {[%clk 0:00:42.6]} 43. Rg1 {[%clk
0:00:07.9]} 43... Kc4 {[%clk 0:00:41.5]} 44. Rb1 {[%clk 0:00:02]} 44... Bxg3
{[%clk 0:00:39.4]} 45. Rb4+ {[%clk 0:00:02.6]} 45... Kd5 {[%clk 0:00:39.3]} 46.
Ke2 {[%clk 0:00:03.5]} 46... Bd6 {[%clk 0:00:38.1]} 47. Rb1 {[%clk 0:00:03.2]}
47... g3 {[%clk 0:00:34.7]} 48. Kf3 {[%clk 0:00:03.5]} 48... gxf2 {[%clk
0:00:33.4]} 49. Nxf2 {[%clk 0:00:04.2]} 49... Kc4 {[%clk 0:00:31.3]} 50. Rb2
{[%clk 0:00:03.1]} 50... d3 {[%clk 0:00:29.7]} 51. Rb1 {[%clk 0:00:01.2]} 51...
d2 {[%clk 0:00:21.6]} 52. Rd1 {[%clk 0:00:01.6]} 52... Kxb5 {[%clk 0:00:19]} 53.
Rxd2 {[%clk 0:00:01.9]} 53... Bc5 {[%clk 0:00:19.1]} 54. Rc2 {[%clk 0:00:02.6]}
54... Rxf2+ {[%clk 0:00:17.5]} 55. Rxf2 {[%clk 0:00:02.9]} 55... Bxf2 {[%clk
0:00:18]} 56. Kxf2 {[%clk 0:00:03.8]} 0-1

[Event "*** Titled Tuesday Blitz"]
[Site "Chess.com"]
[Date "2020.12.01"]
[Round "9"]
[White "Ranindu2003"]
[Black "CalinGheorghiu"]
[Result "1-0"]
[WhiteElo "2604"]
[BlackElo "2406"]
[TimeControl "180+1"]
[EndTime "11:44:36 PST"]
[Termination "Ranindu2003 won on time"]

1. e4 {[%clk 0:03:00.5]} 1... c5 {[%clk 0:02:52.4]} 2. Nf3 {[%clk 0:03:00.6]}
2... d6 {[%clk 0:02:52.1]} 3. d4 {[%clk 0:03:00.8]} 3... cxd4 {[%clk 0:02:53]}
4. Nxd4 {[%clk 0:03:01.7]} 4... Nf6 {[%clk 0:02:53]} 5. Nc3 {[%clk 0:03:02.2]}
5... a6 {[%clk 0:02:50]} 6. Be3 {[%clk 0:03:02.2]} 6... e5 {[%clk 0:02:49.4]} 7.
Nb3 {[%clk 0:03:02.1]} 7... Be6 {[%clk 0:02:48.3]} 8. f3 {[%clk 0:03:02.2]} 8...
Be7 {[%clk 0:02:47.7]} 9. Qd2 {[%clk 0:03:02.1]} 9... O-O {[%clk 0:02:46.8]} 10.
O-O-O {[%clk 0:03:01.8]} 10... a5 {[%clk 0:02:47.1]} 11. a4 {[%clk 0:02:59.6]}
11... Nc6 {[%clk 0:02:36.8]} 12. Bb5 {[%clk 0:02:56.7]} 12... Nb4 {[%clk
0:02:36.5]} 13. Qf2 {[%clk 0:02:48.2]} 13... Qc8 {[%clk 0:02:25.5]} 14. Kb1
{[%clk 0:02:43.8]} 14... d5 {[%clk 0:01:58]} 15. exd5 {[%clk 0:02:10.9]} 15...
Bf5 {[%clk 0:01:56.2]} 16. Na1 {[%clk 0:01:43.2]} 16... Rd8 {[%clk 0:01:45.3]}
17. g4 {[%clk 0:01:27.4]} 17... Bg6 {[%clk 0:01:38.8]} 18. Bb6 {[%clk
0:01:26.7]} 18... Rxd5 {[%clk 0:01:35.9]} 19. Nxd5 {[%clk 0:01:13.4]} 19...
Nfxd5 {[%clk 0:01:34.9]} 20. h4 {[%clk 0:00:48.9]} 20... Nxc2 {[%clk 0:01:33.2]}
21. Nxc2 {[%clk 0:00:44.9]} 21... Nb4 {[%clk 0:01:32.2]} 22. Rd2 {[%clk
0:00:33.3]} 22... Qe6 {[%clk 0:01:25.9]} 23. h5 {[%clk 0:00:26.8]} 23... Rc8
{[%clk 0:01:18.4]} 24. Bc5 {[%clk 0:00:08.4]} 24... Bxc2+ {[%clk 0:00:44.5]} 25.
Rxc2 {[%clk 0:00:07.9]} 25... Qa2+ {[%clk 0:00:43.6]} 26. Kc1 {[%clk 0:00:08.3]}
26... Qa1+ {[%clk 0:00:42]} 27. Kd2 {[%clk 0:00:08]} 27... Qxh1 {[%clk
0:00:40.7]} 28. Bxb4 {[%clk 0:00:07.9]} 28... Bxb4+ {[%clk 0:00:39.5]} 29. Ke3
{[%clk 0:00:08.4]} 29... Bc5+ {[%clk 0:00:34.6]} 30. Ke4 {[%clk 0:00:08.5]}
30... Qb1 {[%clk 0:00:31.4]} 31. Bd3 {[%clk 0:00:06.4]} 31... f5+ {[%clk
0:00:29.3]} 32. gxf5 {[%clk 0:00:06.4]} 32... Rd8 {[%clk 0:00:16.3]} 33. Qxc5
{[%clk 0:00:04.6]} 33... Qe1+ {[%clk 0:00:16]} 34. Qe3 {[%clk 0:00:04.7]} 34...
Qh4+ {[%clk 0:00:15.4]} 35. f4 {[%clk 0:00:04.9]} 35... exf4 {[%clk 0:00:15.1]}
36. Qf3 {[%clk 0:00:03.8]} 36... Re8+ {[%clk 0:00:13.1]} 37. Kd5 {[%clk
0:00:02]} 37... Rd8+ {[%clk 0:00:12]} 38. Kc4 {[%clk 0:00:02.3]} 38... Qe1
{[%clk 0:00:09.8]} 39. Kb3 {[%clk 0:00:02.7]} 39... Qb4+ {[%clk 0:00:09.6]} 40.
Ka2 {[%clk 0:00:03.4]} 40... Qxa4+ {[%clk 0:00:09.9]} 41. Kb1 {[%clk 0:00:04.3]}
41... Qb4 {[%clk 0:00:09.1]} 42. Bc4+ {[%clk 0:00:05]} 42... Kh8 {[%clk
0:00:08.6]} 43. Qxf4 {[%clk 0:00:05.6]} 43... Qe1+ {[%clk 0:00:06.8]} 44. Rc1
{[%clk 0:00:05.8]} 44... Qb4 {[%clk 0:00:06.2]} 45. f6 {[%clk 0:00:05.8]} 45...
g5 {[%clk 0:00:04.4]} 46. Qxg5 {[%clk 0:00:04.7]} 46... Qf8 {[%clk 0:00:03.5]}
47. f7 {[%clk 0:00:04.1]} 47... Qg7 {[%clk 0:00:02.3]} 48. Qxd8+ {[%clk
0:00:04]} 1-0

[Event "*** Titled Tuesday Blitz"]
[Site "Chess.com"]
[Date "2020.12.01"]
[Round "9"]
[White "nikitadovbnya2008"]
[Black "pavelalexandru07"]
[Result "0-1"]
[WhiteElo "2188"]
[BlackElo "2351"]
[TimeControl "180+1"]
[EndTime "11:44:42 PST"]
[Termination "pavelalexandru07 won by checkmate"]

1. Nf3 {[%clk 0:03:00.9]} 1... g6 {[%clk 0:02:50.7]} 2. g3 {[%clk 0:02:57.1]}
2... Bg7 {[%clk 0:02:50.2]} 3. Bg2 {[%clk 0:02:57.7]} 3... Nf6 {[%clk
0:02:50.2]} 4. O-O {[%clk 0:02:57.9]} 4... O-O {[%clk 0:02:51]} 5. c4 {[%clk
0:02:58.1]} 5... d6 {[%clk 0:02:51.6]} 6. Nc3 {[%clk 0:02:58.1]} 6... e5 {[%clk
0:02:52.2]} 7. d3 {[%clk 0:02:58.4]} 7... Nc6 {[%clk 0:02:52.8]} 8. Rb1 {[%clk
0:02:56.8]} 8... Be6 {[%clk 0:02:53.3]} 9. b4 {[%clk 0:02:56.9]} 9... Nd7 {[%clk
0:02:37]} 10. b5 {[%clk 0:02:53.1]} 10... Nd4 {[%clk 0:02:37.2]} 11. Nd2 {[%clk
0:02:48.7]} 11... Rb8 {[%clk 0:02:32.9]} 12. e3 {[%clk 0:02:47.7]} 12... Nf5
{[%clk 0:02:17.8]} 13. Nde4 {[%clk 0:02:32.5]} 13... h6 {[%clk 0:01:57]} 14. g4
{[%clk 0:02:26.9]} 14... Ne7 {[%clk 0:01:50.4]} 15. d4 {[%clk 0:02:15.1]} 15...
f5 {[%clk 0:01:31.6]} 16. gxf5 {[%clk 0:02:13.8]} 16... gxf5 {[%clk 0:01:31.2]}
17. d5 {[%clk 0:02:06.4]} 17... Bf7 {[%clk 0:01:28.3]} 18. Ng3 {[%clk 0:02:03]}
18... Bg6 {[%clk 0:01:10.4]} 19. Bb2 {[%clk 0:01:53]} 19... Nf6 {[%clk
0:01:07.1]} 20. f4 {[%clk 0:01:50.2]} 20... e4 {[%clk 0:01:06.2]} 21. Nce2
{[%clk 0:01:46.6]} 21... Ng4 {[%clk 0:01:01.6]} 22. Qd2 {[%clk 0:01:44.4]} 22...
Bxb2 {[%clk 0:01:00.8]} 23. Rxb2 {[%clk 0:01:42]} 23... b6 {[%clk 0:00:59.3]}
24. Nd4 {[%clk 0:01:41.1]} 24... Qd7 {[%clk 0:00:53.4]} 25. Ne6 {[%clk
0:01:28.9]} 25... Rf7 {[%clk 0:00:51.8]} 26. Bh3 {[%clk 0:01:18.5]} 26... h5
{[%clk 0:00:34.6]} 27. Qd4 {[%clk 0:00:58.5]} 27... Rc8 {[%clk 0:00:22.8]} 28.
Rg2 {[%clk 0:00:57]} 28... Re8 {[%clk 0:00:08.3]} 29. a4 {[%clk 0:00:40.5]}
29... Nc8 {[%clk 0:00:07.6]} 30. Nxe4 {[%clk 0:00:33.4]} 30... fxe4 {[%clk
0:00:07.4]} 31. Bxg4 {[%clk 0:00:33.4]} 31... hxg4 {[%clk 0:00:07.4]} 32. Rxg4
{[%clk 0:00:33.7]} 32... Rxe6 {[%clk 0:00:07.6]} 33. dxe6 {[%clk 0:00:32.8]}
33... Qxe6 {[%clk 0:00:08]} 34. Rg5 {[%clk 0:00:27.8]} 34... Ne7 {[%clk
0:00:08.1]} 35. Rf2 {[%clk 0:00:20]} 35... Nf5 {[%clk 0:00:08.4]} 36. Qc3 {[%clk
0:00:19]} 36... Rh7 {[%clk 0:00:08.5]} 37. Rfg2 {[%clk 0:00:18.3]} 37... Rg7
{[%clk 0:00:07.9]} 38. Qe1 {[%clk 0:00:13]} 38... Kf7 {[%clk 0:00:08]} 39. h4
{[%clk 0:00:12.4]} 39... Qxc4 {[%clk 0:00:07.8]} 40. h5 {[%clk 0:00:09.4]} 40...
Bh7 {[%clk 0:00:07.7]} 41. Rxg7+ {[%clk 0:00:08.7]} 41... Nxg7 {[%clk
0:00:08.6]} 42. Qg3 {[%clk 0:00:08.7]} 42... Qc3 {[%clk 0:00:06.1]} 43. h6
{[%clk 0:00:05.9]} 43... Nf5 {[%clk 0:00:06.3]} 44. Qg5 {[%clk 0:00:05.6]} 44...
Qxe3+ {[%clk 0:00:06.2]} 45. Kh2 {[%clk 0:00:05.9]} 45... Qf3 {[%clk 0:00:03.6]}
46. Qg8+ {[%clk 0:00:02.2]} 46... Bxg8 {[%clk 0:00:03.1]} 47. Rxg8 {[%clk
0:00:02.1]} 47... Kxg8 {[%clk 0:00:03.3]} 48. h7+ {[%clk 0:00:03]} 48... Kxh7
{[%clk 0:00:03.8]} 49. Kg1 {[%clk 0:00:03]} 49... Qxf4 {[%clk 0:00:04.7]} 50.
Kg2 {[%clk 0:00:03]} 50... e3 {[%clk 0:00:05.6]} 51. Kg1 {[%clk 0:00:03.9]}
51... e2 {[%clk 0:00:06.4]} 52. Kg2 {[%clk 0:00:04.6]} 52... e1=Q {[%clk
0:00:07.3]} 53. a5 {[%clk 0:00:04.6]} 53... Qff2+ {[%clk 0:00:07.6]} 54. Kh3
{[%clk 0:00:04.8]} 54... Qh1+ {[%clk 0:00:07.9]} 55. Kg4 {[%clk 0:00:05]} 55...
Qff3+ {[%clk 0:00:08.6]} 56. Kg5 {[%clk 0:00:04.9]} 56... Qh4# {[%clk
0:00:09.3]} 0-1